Cogmind - Beta 14 @@@ ROGUE MODE // 2025.01.04 @ 20:53:22 Player: xack Result: Destroyed by S-43 Plague with Heavy Machine Gun Performance ------------- Evolutions (6) 3000 Regions Visited (21) 4200 Robots Destroyed (149) 745 Value Destroyed (6351) 6351 Prototype IDs (38) 760 Alien Tech Used (2) 400 Bonus (2554) 2554 TOTAL SCORE: 18010 Bonus ------- High Alert Combat Kills 819 Registered with UFD 300 Met Imprinter 300 Met Zhirov 300 Met Warlord at Base 500 MAIN.C Attacked Warlord 500 Friendly Fire -165 Cogmind --------- Core Integrity 0/1150 Matter 257/300 Energy 0/100 System Corruption 10% Temperature Cool (0) Movement Core (400) Ox7 Location -3/Proximity Caves Parts ------- > --- POWER (2) -------- (None) > --- PROPULSION (6) --- (None) > --- UTILITY (8) ------ Medium Storage Unit Seismic Detector Core Analyzer ECM Suite Improved Cloaking Device Improved Hacking Suite Advanced Hacking Suite > --- WEAPON (3) ------- Vortex Rail > --- INVENTORY (10) --- Advanced Heat Sink Structural Scanner Improved Signal Interpreter Layered Medium Armor Plating Improved Shield Generator Dispersion Rifle Falx Peak State ------------ > --- POWER ------------ Antimatter Reactor Light Antimatter Reactor > --- PROPULSION ------- Improved Medium Treads Armored Medium Treads Armored Medium Treads Advanced Medium Treads Armored Heavy Treads > --- UTILITY ---------- Improved Cryofiber Web Advanced Heat Sink Huge Storage Unit Core Analyzer Improved Armor Integrity Analyzer Particle Accelerator Improved Light Armor Plating Advanced Hardlight Generator > --- WEAPON ----------- Plasma Rifle Heavy Phase Cannon Coil Gun > --- INVENTORY -------- Improved Treads Heavy Treads Advanced Heat Sink Improved Matter Compressor Advanced Sensor Array Long-range Terrain Scanner Seismic Detector Advanced Targeting Computer Improved Weapon Cycler Advanced Transmission Jammer Cloaking Device Remote Shield Advanced System Shield Improved Dynamic Insulation System Improved System Guard High-powered Tractor Beam Transdimensional Reconstructor Long-range Proton Cannon Long-range Proton Cannon Improved Plasma Cutter Molecular Deconstructor Impact Mace Botcube [Rating: 125] Favorites ----------- Power Angular Momentum Engine Engine Angular Momentum Engine Power Core Micro Fission Core Reactor Light Antimatter Reactor Propulsion Compact Wheel Treads Spiked Treads Leg Armored Leg Wheel Compact Wheel Hover Unit Gyrokinetic Inverter Flight Unit Impulse Thruster Utility Seismic Detector Device Seismic Detector Storage Huge Storage Unit Processor 0b10 Decoder Chip [Generic] Hackware Advanced Hacking Suite Protection Improved Medium Armor Plating Weapon Shotgun Energy Gun Plasma Rifle Energy Cannon Advanced Beam Cannon Ballistic Gun Shotgun Ballistic Cannon Magnetic Acceleration Cannon Launcher Rocket Launcher Special Weapon Molecular Deconstructor Impact Weapon Powered Hammer Build | -11 -10 -10 -9 -9 -6 -6 -6 -6 -5 -5 -5 -5 -5 -4 -4 -4 -4 -4 -4 -4 -3 ------- Run | Yrd Mat Sub Rec Scr Fac Low Low Zio Pro Fac Upp Upp Zhi Pro Fac Was Fac Upp Upp War Pro Slots Evolved 12 | . . . . . 8 . . . . 2 . . . . 2 . . . . . . Power 1 | . . . . . 1 . . . . . . . . . . . . . . . . Propulsion 4 | . . . . . 2 . . . . 1 . . . . 1 . . . . . . Utility 6 | . . . . . 4 . . . . 1 . . . . 1 . . . . . . Weapon 1 | . . . . . 1 . . . . . . . . . . . . . . . . Parts Attached 286 | 7 10 10 2 7 9 1 4 4 11 16 27 5 3 8 104 4 30 7 . 13 4 Power 22 | 1 1 2 1 1 1 . 1 . 1 . 2 . 1 . 6 . 2 . . 2 . Engine 10 | 1 1 2 1 1 1 . 1 . 1 . . . . . . . 1 . . . . Core 7 | . . . . . . . . . . . 2 . 1 . 3 . 1 . . . . Reactor 5 | . . . . . . . . . . . . . . . 3 . . . . 2 . Propulsion 56 | 2 3 1 . 2 3 . . . 2 3 4 1 . 1 22 . 9 . . 3 . Treads 30 | . 1 1 . 1 1 . . . 1 1 3 1 . 1 19 . . . . . . Leg 8 | 2 . . . . 1 . . . . 1 1 . . . 3 . . . . . . Wheel 8 | . 2 . . 1 1 . . . 1 1 . . . . . . 2 . . . . Hover 1 | . . . . . . . . . . . . . . . . . 1 . . . . Flight 9 | . . . . . . . . . . . . . . . . . 6 . . 3 . Utility 124 | 2 2 4 1 . 4 1 3 4 4 6 9 1 2 4 50 2 16 6 . 2 1 Device 88 | 1 . 1 1 . 3 1 2 4 3 3 6 1 1 2 40 2 10 5 . 1 1 Storage 6 | 1 2 . . . . . . . . 1 . . . . . . 2 . . . . Processor 7 | . . . . . . . . . . 1 . . . 1 3 . 1 1 . . . Hackware 4 | . . . . . . . . . . . . . . . 1 . 3 . . . . Protection 19 | . . 3 . . 1 . 1 . 1 1 3 . 1 1 6 . . . . 1 . Artifact . | . . . . . . . . . . . . . . . . . . . . . . Weapon 84 | 2 4 3 . 4 1 . . . 4 7 12 3 . 3 26 2 3 1 . 6 3 Energy Gun 26 | 1 . . . . . . . . 1 . 4 2 . 1 5 1 3 1 . 5 2 Energy Cannon 7 | . . . . . 1 . . . . 1 . . . . 5 . . . . . . Ballistic Gun 15 | 1 3 1 . 3 . . . . . . 1 . . . 5 . . . . 1 . Ballistic Cannon 12 | . . . . 1 . . . . 2 2 2 . . 1 3 . . . . . 1 Launcher 9 | . . 2 . . . . . . . 1 3 . . 1 2 . . . . . . Special Weapon 2 | . . . . . . . . . . . . 1 . . . 1 . . . . . Impact Weapon 13 | . 1 . . . . . . . 1 3 2 . . . 6 . . . . . . Slashing Weapon . | . . . . . . . . . . . . . . . . . . . . . . Piercing Weapon . | . . . . . . . . . . . . . . . . . . . . . . Special Melee Weapon . | . . . . . . . . . . . . . . . . . . . . . . Unidentified Prototypes 9 | . . . . . . . . 2 . 1 . 1 2 . 2 . . . . 1 . Corrupted Parts 1 | . . . . . . . . . . . . . . . . . . . . 1 . System Corruption 10 | . . . . . . . . . . . . . . . . . . . . 10 . Parts Lost 88 | . 1 1 . . . . . . 7 3 13 . . 5 36 6 6 . . . 10 Power 14 | . . . . . . . . . 1 . 2 . . 1 6 . 3 . . . 1 Propulsion 30 | . . . . . . . . . 1 1 5 . . 1 11 3 2 . . . 6 Utility 25 | . . 1 . . . . . . 3 2 4 . . 1 11 1 1 . . . 1 Weapon 19 | . 1 . . . . . . . 2 . 2 . . 2 8 2 . . . . 2 Highest Loss Streak 10 | . 1 1 . . . . . . 5 2 10 . . 4 10 6 4 . . . 7 To Critical Strikes 6 | . . . . . . . . . . 1 1 . . . 2 2 . . . . . Average Slot Usage (%) 91 | . 99 100 100 100 86 93 93 93 93 99 90 93 94 91 84 42 63 72 73 79 77 Engine 8 | . 14 14 14 14 13 13 13 13 12 11 . . . . . . 5 . . 6 . Core 1 | . . . . . . . . . . . 8 11 11 9 2 . . . . . . Treads 11 | . 7 14 14 14 6 6 6 6 6 10 13 20 23 21 17 11 . . . . . Leg 3 | . 12 . . . 6 6 6 6 6 7 5 2 . . 4 . . . . . . Wheel 6 | . 7 14 14 14 6 6 6 6 6 8 1 . . . . . . . . . . Flight 1 | . . . . . . . . . . . . . . . . . 10 15 15 17 24 Device 19 | . 14 9 14 14 20 26 26 26 24 22 21 23 25 25 26 10 13 14 15 15 15 Storage 8 | . 14 14 14 14 6 6 6 6 6 5 5 5 5 5 5 2 1 5 5 5 5 Processor 2 | . . . . . . . . . . 5 5 5 5 8 4 10 13 5 5 5 5 Hackware 1 | . . . . . . . . . . . . . . . . . 3 15 15 15 14 Protection 2 | . . 4 . . 6 6 6 6 7 4 6 5 3 . 2 . . . . . . Energy Gun 3 | . 2 . . . . . . . 1 . 8 10 11 12 7 4 6 10 10 7 5 Energy Cannon 1 | . . . . . 6 6 6 6 6 7 . . . . 1 2 . . . . . Ballistic Gun 8 | . 24 20 14 19 6 6 6 6 4 . . . . . 2 . . . . . . Ballistic Cannon 3 | . . . . 5 6 6 6 6 5 4 3 . . . 2 . . . . . . Impact Weapon 1 | . . 5 . . . . . . . 2 2 5 5 . 1 . . . . . . Peak Build Rating 125 | 7 12 16 15 26 56 58 62 66 65 75 86 92 92 93 125 90 92 77 71 86 76 Average Rating 54 | 5 10 13 13 20 51 57 61 62 61 69 79 83 88 89 97 53 59 70 70 72 65 On Entrance 52 | . 7 12 15 13 26 56 58 62 63 58 73 82 86 92 84 62 23 71 70 71 76 Naked Turns . | . . . . . . . . . . . . . . . . . . . . . . Heaviest Build 155 | 13 92 99 99 106 132 132 135 135 145 140 137 118 125 126 155 103 30 21 21 32 32 Greatest Support 184 | 20 20 16 16 16 28 28 28 28 28 26 121 148 148 148 184 100 35 21 21 35 35 Greatest Overweight (x) 41 | . 5 6 6 6 4 4 4 4 8 8 41 . . . 5 4 1 . . 1 10 Average Overweight (x) 2 | . 2 5 5 5 4 4 4 4 4 5 . . . . . . . . . . . Largest Inventory Capacity 25 | 8 25 25 25 25 25 25 25 25 25 25 25 25 25 25 25 25 10 10 10 10 10 Average Capacity 22 | 7 18 25 25 25 25 25 25 25 25 25 25 25 25 25 25 16 5 10 10 10 10 Most Carried 25 | 6 25 25 23 25 25 25 25 25 25 25 25 25 25 25 25 22 10 10 10 10 10 Average Carried 21 | 4 16 24 22 24 21 25 25 24 23 21 23 24 24 24 23 13 5 9 9 9 9 Final Capacity 25 | 8 25 25 25 25 25 25 25 25 25 25 25 25 25 25 25 5 10 10 10 10 10 Final Carried 25 | 6 25 23 22 25 25 25 25 25 18 25 25 25 25 22 20 5 10 10 10 10 7 Class Distribution -------------------- 39% | Mutant 20% | Tank 11% | Scavenger-Mutant 7% | Scavenger-Tank 5% | Scavenger-Gunner 4% | Hacker-Mutant 4% | Derelict-Mutant Dominant Class ---------------- Mutant | -10/Materials Mutant | -10/Subcaves Mutant | -9/Recycling Mutant | -9/Scraptown Tank | -6/Factory Tank | -6/Lower Caves Tank | -6/Lower Caves Tank | -6/Zion Tank | -5/Proximity Caves Scavenger-Tank | -5/Factory Scavenger-Mutant | -5/Upper Caves Scavenger-Mutant | -5/Upper Caves Derelict-Mutant | -5/Zhirov Scavenger-Gunner | -4/Proximity Caves Scavenger-Tank | -4/Factory Mutant | -4/Waste Mutant | -4/Factory Hacker-Mutant | -4/Upper Caves Hacker-Mutant | -4/Upper Caves Hacker-Mutant | -4/Warlord Scavenger-Sprinter | -3/Proximity Caves Resources | -11 -10 -10 -9 -9 -6 -6 -6 -6 -5 -5 -5 -5 -5 -4 -4 -4 -4 -4 -4 -4 -3 ----------- Run | Yrd Mat Sub Rec Scr Fac Low Low Zio Pro Fac Upp Upp Zhi Pro Fac Was Fac Upp Upp War Pro Matter Collected 5900 | 255 386 576 . 107 146 10 66 40 283 354 854 101 102 224 1650 . 246 237 49 208 6 Remotely 896 | . . . . . . . 30 . . . 547 . . . 319 . . . . . . Salvage Created 6261 | 83 375 243 . . 71 . . . 207 413 222 . 102 286 3981 . 246 . . . 32 Parts 311 | 7 28 16 . . 3 . . . 8 20 8 . . 16 185 . 18 . . . 2 Haulers Intercepted 1 | . 1 . . . . . . . . . . . . . . . . . . . . Recyclers Shooed 6 | 1 . . . . . . . . . 1 . . . . 3 . 1 . . . . Parts Field Recycled . | . . . . . . . . . . . . . . . . . . . . . . Retrieved Matter . | . . . . . . . . . . . . . . . . . . . . . . Parts Self-Destructed 35 | . . 4 . . . . 3 . 8 . 4 . . 14 . . . . . . 2 Prevented 3 | . . . . . . . . . . . . . . . . . . . . . 3 Kills | -11 -10 -10 -9 -9 -6 -6 -6 -6 -5 -5 -5 -5 -5 -4 -4 -4 -4 -4 -4 -4 -3 ------- Run | Yrd Mat Sub Rec Scr Fac Low Low Zio Pro Fac Upp Upp Zhi Pro Fac Was Fac Upp Upp War Pro Combat Hostiles Destroyed 113 | . 12 10 . . 2 . . . 8 8 9 . . 10 53 . . . . . 1 Melee 3 | . . . . . . . . . . 1 2 . . . . . . . . . . Guns 44 | . 10 6 . . . . . . 2 . . . . 6 19 . . . . . 1 Cannons 35 | . . . . . 2 . . . 5 4 2 . . . 22 . . . . . . AOE 30 | . 2 4 . . . . . . 1 3 5 . . 4 11 . . . . . . Classes Destroyed 20 | 1 4 3 . . 1 . . . 2 3 2 . . . 4 . . . . . . Worker 6 | . 1 . . . . . . . . 1 . . . . 2 . 2 . . . . Builder 6 | . . . . . . . . . . . . . . . 5 . 1 . . . . Tunneler 8 | 4 . . . . . . . . . . . . . . 1 . 3 . . . . Hauler 1 | . 1 . . . . . . . . . . . . . . . . . . . . Recycler 9 | . . . . . . . . . . 1 . . . . 7 . 1 . . . . Operator 2 | . . . . . . . . . . 1 . . . . . . 1 . . . . Drone 3 | . . . . . . . . . 1 . . . . 2 . . . . . . . Turret 2 | . . 2 . . . . . . . . . . . . . . . . . . . Watcher 1 | . . . . . . . . . . . . . . . 1 . . . . . . Swarmer 30 | . 6 4 . . . . . . 4 5 1 . . 5 4 . . . . . 1 Grunt 26 | . 6 . . . . . . . . . 4 . . . 16 . . . . . . Brawler 3 | . . . . . . . . . . . 1 . . 1 1 . . . . . . Duelist 3 | . . . . . . . . . . . 2 . . 1 . . . . . . . Sentry 11 | . . 1 . . . . . . . 1 2 . . 1 6 . . . . . . Specialist 2 | . . . . . . . . . . . . . . . 2 . . . . . . Hunter 9 | . . . . . . . . . . 1 . . . . 8 . . . . . . Programmer 19 | . . . . . 2 . . . 2 1 . . . . 14 . . . . . . Heavy 1 | . . . . . . . . . . . . . . . 1 . . . . . . Behemoth 2 | . . . . . . . . . 1 . . . . . 1 . . . . . . Subdweller 5 | . . 5 . . . . . . . . . . . . . . . . . . . Best Kill Streak 11 | 3 3 6 . . 1 . . . 4 3 4 . . 6 11 . 3 . . . 1 Combat Bots Only 7 | . 3 4 . . 1 . . . 4 3 4 . . 6 7 . . . . . 1 Max Kills in Single Turn 8 | 1 2 1 . . 1 . . . 1 2 1 . . 4 8 . 2 . . . 1 Gunslinging . | . . . . . . . . . . . . . . . . . . . . . . Exploded 4 | . 2 1 . . . . . . 1 2 1 . . 4 4 . . . . . . Melee 1 | . . . . . . . . . . 1 1 . . . . . . . . . . Uniques/NPCs Destroyed . | . . . . . . . . . . . . . . . . . . . . . . Combat | -11 -10 -10 -9 -9 -6 -6 -6 -6 -5 -5 -5 -5 -5 -4 -4 -4 -4 -4 -4 -4 -3 -------- Run | Yrd Mat Sub Rec Scr Fac Low Low Zio Pro Fac Upp Upp Zhi Pro Fac Was Fac Upp Upp War Pro Hostile Shots Fired 1124 | . 28 81 . . 9 9 . . 85 56 193 . . 41 493 10 31 2 . 2 84 Missed 343 | . 5 24 . . 1 2 . . 21 12 69 . . 10 147 2 14 2 . 1 33 Damage Taken 15063 | 23 289 653 . . 118 101 . . 1180 558 2244 . . 700 7278 353 474 . . 87 1005 Core 1396 | . 48 97 . . . 14 . . 30 14 36 . . 32 703 55 93 . . 60 214 Absorbed by Shields 1224 | . . . . . . 28 . . 164 164 294 . . 43 531 . . . . . . Reduced by Siege Mode 18 | . . . . . . . . . . . . . . . 18 . . . . . . Regen/Repaired (Parts) 56 | . . . . . . . . . . . . . . . 53 . . . . 3 . Core Remaining (%) 81 | 100 . . . 42 . . . . 94 . . . . 91 . . . . . . . Volleys Fired 331 | 10 20 32 . . 5 . . . 28 16 26 . . 16 150 . 21 2 . . 5 Largest 3 | 2 2 2 . . 3 . . . 3 3 3 . . 3 3 . 2 1 . . 2 Hottest 361 | 60 63 46 . . 149 . . . 178 206 182 . . 219 361 . 105 65 . . 126 Shots Fired 798 | 20 40 52 . . 15 . . . 80 39 49 1 1 38 415 . 38 1 . . 9 Gun 456 | 20 40 40 . . 5 . . . 17 . 4 1 1 36 248 . 38 1 . . 5 Cannon 303 | . . . . . 10 . . . 63 37 29 . . . 160 . . . . . 4 Launcher 39 | . . 12 . . . . . . . 2 16 . . 2 7 . . . . . . Special . | . . . . . . . . . . . . . . . . . . . . . . Kinetic 316 | 10 39 40 . . 10 . . . 50 12 28 . . . 123 . . . . . 4 Thermal 395 | . . . . . 5 . . . 28 14 5 1 1 36 262 . 38 1 . . 4 Explosive 39 | . . 12 . . . . . . . 2 16 . . 2 7 . . . . . . Electromagnetic 47 | 10 1 . . . . . . . 2 11 . . . . 23 . . . . . . Entropic 1 | . . . . . . . . . . . . . . . . . . . . . 1 Robot Hit Streak 26 | 2 11 17 . . 3 . . . 10 9 8 . . 7 26 . 10 . . . 2 Robot Miss Streak 8 | 3 4 2 . . 1 . . . 8 3 4 . . 3 4 . 4 . . . 4 Penetration Max 1 | . . . . . . . . . . . . . . . 1 . . . . . . Secondary Targets 4 | . . . . . . . . . . . . . . 2 2 . . . . . . Max Gunslinging Chain 1 | . . . . . . . . . . . . . . 1 1 . . . . . . Shots Hit Robots 478 | 9 27 39 . . 8 . . . 33 24 26 . 1 22 266 . 20 . . . 3 Core Hits 267 | 4 20 25 . . 4 . . . 12 15 29 . . 14 133 . 10 . . . 1 Critical Kills 8 | . . . . . . . . . . . . . . . 8 . . . . . . Critical Parts Destroyed 6 | . . . . . . . . . . . 2 . . . 4 . . . . . . Critical Strikes 31 | . . 1 . . 1 . . . . 1 4 . . . 24 . . . . . . Burn 10 | . . . . . . . . . . . . . . . 10 . . . . . . Destroy 16 | . . 1 . . . . . . . . 3 . . . 12 . . . . . . Blast 4 | . . . . . 1 . . . . . 1 . . . 2 . . . . . . Corrupt 1 | . . . . . . . . . . 1 . . . . . . . . . . . Melee Attacks 44 | . 3 4 . . . . . . 2 11 9 1 1 . 13 . . . . . . Impact 44 | . 3 4 . . . . . . 2 11 9 1 1 . 13 . . . . . . Slashing . | . . . . . . . . . . . . . . . . . . . . . . Piercing . | . . . . . . . . . . . . . . . . . . . . . . Sneak Attacks . | . . . . . . . . . . . . . . . . . . . . . . Combat Hostiles . | . . . . . . . . . . . . . . . . . . . . . . Follow-up Attacks . | . . . . . . . . . . . . . . . . . . . . . . Damage Inflicted 17557 | 177 491 995 . . 230 . . . 1097 904 1573 . 56 969 10595 . 359 . . . 111 Guns 6524 | 115 376 531 . . 22 . . . 172 . . . . 583 4297 . 359 . . . 69 Cannons 5334 | . . . . . 208 . . . 855 535 454 . . . 3240 . . . . . 42 Explosions 5546 | 62 115 464 . . . . . . 70 349 1042 . . 386 3058 . . . . . . Melee 116 | . . . . . . . . . . . 60 . 56 . . . . . . . . Ramming 37 | . . . . . . . . . . 20 17 . . . . . . . . . . Kinetic 4553 | 37 364 531 . . 128 . . . 681 226 454 . . . 2090 . . . . . 42 Thermal 8108 | 62 115 . . . 102 . . . 400 211 . . . 583 6246 . 359 . . . 30 Explosive 3998 | . . 464 . . . . . . . 349 1042 . . 386 1757 . . . . . . Electromagnetic 706 | 78 12 . . . . . . . 16 98 . . . . 502 . . . . . . Impact 116 | . . . . . . . . . . . 60 . 56 . . . . . . . . Slashing . | . . . . . . . . . . . . . . . . . . . . . . Piercing . | . . . . . . . . . . . . . . . . . . . . . . Entropic 39 | . . . . . . . . . . . . . . . . . . . . . 39 Highest Corruption 17 | . . . . . 1 1 1 1 5 . 16 16 16 17 15 15 15 11 11 11 10 Average Corruption 9 | . . . . . 1 1 1 1 3 . 15 16 16 16 6 15 13 11 11 10 10 Corruption Purged 5 | . . . . . . . . . . . . . . . . . 5 . . . . Corruption Blocked . | . . . . . . . . . . . . . . . . . . . . . . Effects 294 | . . . . . 2 7 4 1 11 . 71 26 10 34 61 6 31 5 7 3 15 Message Errors 54 | . . . . . . 2 . 1 1 . 10 6 2 7 11 4 3 1 . 2 4 Matter Fused 71 | . . . . . 1 3 1 . 2 . 17 3 3 8 14 . 8 2 4 1 4 Heat Flow Errors 35 | . . . . . . . 1 . . . 8 6 3 5 6 . 4 . 1 . 1 Energy Discharges 26 | . . . . . . 2 . . . . 6 2 . 1 5 . 6 1 2 . 1 Parts Rejected 5 | . . . . . . . . . . . . . . 1 3 . 1 . . . . Parts Fused 2 | . . . . . . . . . . . . . . . 1 . 1 . . . . Data Loss (minor) 44 | . . . . . . . 1 . 3 . 15 6 1 6 9 . 2 . . . 1 Data Loss (major) 14 | . . . . . 1 . . . 2 . 3 . . 1 4 . 2 . . . 1 Misfires 17 | . . . . . . . . . 1 . 4 1 1 3 4 . 1 . . . 2 Alerts 15 | . . . . . . . 1 . 1 . 6 2 . 1 1 1 1 . . . 1 Misdirections 3 | . . . . . . . . . . . 1 . . . . 1 1 . . . . Weapon Failures 8 | . . . . . . . . . 1 . 1 . . 1 3 . 1 1 . . . Overload Shots 4 | . . . . . . . . . . . . . . . 4 . . . . . . Overflow Damage 599 | . 4 8 . . 24 . . . 17 48 25 . 4 26 443 . . . . . . Projectiles 125 | . . . . . 24 . . . 17 8 . . . . 76 . . . . . . Explosions 464 | . 4 8 . . . . . . . 34 25 . . 26 367 . . . . . . Melee 10 | . . . . . . . . . . 6 . . 4 . . . . . . . . Knockbacks 19 | . . . . . . . . . 2 2 . . . . 14 . . . . . 1 Impact 1 | . . . . . . . . . . 1 . . . . . . . . . . . Kinetic 17 | . . . . . . . . . 2 1 . . . . 13 . . . . . 1 Secondary 1 | . . . . . . . . . . . . . . . 1 . . . . . . Self-Inflicted Damage 574 | 23 49 25 . . . . . . . . 87 . . 107 283 . . . . . . Shots 12 | 1 1 1 . . . . . . . . 3 . . 2 4 . . . . . . Rammed 3 | . . . . . . . . . . 2 1 . . . . . . . . . . Targets Rammed 4 | . . . . . . . . . . 3 1 . . . . . . . . . . Kicked . | . . . . . . . . . . . . . . . . . . . . . . Crushed 1 | . . . . . . . . . . 1 . . . . . . . . . . . Highest Temperature 652 | 12 15 . . . 12 . 98 . 350 286 247 249 222 372 652 . 253 . 111 247 113 Average Temperature 102 | 12 4 . . . 6 . 51 . 41 71 80 88 95 140 181 . 50 . 57 129 15 Received Heat Transfer 2068 | . 78 237 . . . 49 . . 350 14 561 . . 72 671 . 36 . . . . Effects 12 | . . . . . . . . . 1 . . . . 2 9 . . . . . . Shutdowns 3 | . . . . . . . . . 1 . . . . 1 1 . . . . . . Interference 4 | . . . . . . . . . . . . . . 1 3 . . . . . . Damage (minor) 2 | . . . . . . . . . . . . . . . 2 . . . . . . Damage (major) 2 | . . . . . . . . . . . . . . . 2 . . . . . . Damage (core) 1 | . . . . . . . . . . . . . . . 1 . . . . . . Siege Activations 2 | . . . . . . . . . . . . . . . 2 . . . . . . Total Turns 29 | . . . . . . . . . . . . . . . 29 . . . . . . Longest Duration 19 | . . . . . . . . . . . . . . . 19 . . . . . . Robots Corrupted 3 | . . . . . . . . . . 2 . . 1 . . . . . . . . Combat Hostiles 1 | . . . . . . . . . . . . . 1 . . . . . . . . Parts Fried 10 | . . . . . . . . . . 8 . . 1 . 1 . . . . . . Impact Corruptions 2 | . . . . . . . . . . 1 . . 1 . . . . . . . . Robots Melted 1 | . . . . . . . . . . . . . . . 1 . . . . . . Combat Hostiles 1 | . . . . . . . . . . . . . . . 1 . . . . . . Parts Melted 25 | . . . . . 1 . . . . . . . . 4 19 . 1 . . . . Heat Transferred 12154 | 50 100 . . . 148 . . . 568 370 . . . 892 9175 . 814 . . . 37 Parts Sabotaged . | . . . . . . . . . . . . . . . . . . . . . . Parts Stolen . | . . . . . . . . . . . . . . . . . . . . . . Parts Stripped . | . . . . . . . . . . . . . . . . . . . . . . Power Chain Reactions 4 | 1 1 . . . . . . . 1 . . . . . 1 . . . . . . Alert | -11 -10 -10 -9 -9 -6 -6 -6 -6 -5 -5 -5 -5 -5 -4 -4 -4 -4 -4 -4 -4 -3 ------- Run | Yrd Mat Sub Rec Scr Fac Low Low Zio Pro Fac Upp Upp Zhi Pro Fac Was Fac Upp Upp War Pro Peak Influence 1396 | 20 215 . 80 . 44 . . . . 504 . . . . 1396 478 488 . . . . Initial 478 | . 13 . 80 . . . . . . 325 . . . . 168 478 275 . . . . Average 211 | 7 72 . 80 . 14 . . . . 357 . . . . 255 440 352 . . . . Maximum Alert Level 4 | . 1 . . . . . . . . 2 . . . . 4 2 2 . . . . Low Security (%) 62 | 100 97 . 100 . 100 . . . . . . . . . 67 . . . . . . Level 1 23 | . 2 . . . . . . . . 83 . . . . 14 37 73 . . . . Level 2 8 | . . . . . . . . . . 16 . . . . 6 62 26 . . . . Level 3 3 | . . . . . . . . . . . . . . . 7 . . . . . . Level 4 1 | . . . . . . . . . . . . . . . 3 . . . . . . Level 5 . | . . . . . . . . . . . . . . . . . . . . . . High Security . | . . . . . . . . . . . . . . . . . . . . . . Max Security . | . . . . . . . . . . . . . . . . . . . . . . Squads Dispatched 24 | . . . . . 2 . . . . 1 . . . . 18 . 3 . . . . Investigation 3 | . . . . . . . . . . . . . . . 3 . . . . . . Extermination 10 | . . . . . 2 . . . . . . . . . 7 . 1 . . . . Reinforcement 5 | . . . . . . . . . . 1 . . . . 3 . 1 . . . . Assault 1 | . . . . . . . . . . . . . . . 1 . . . . . . Garrison 5 | . . . . . . . . . . . . . . . 4 . 1 . . . . Intercept . | . . . . . . . . . . . . . . . . . . . . . . Searches Triggered 1 | . . . . . . . . . . 1 . . . . . . . . . . . Construction Impeded 1 | . . . . . . . . . . . . . . . 1 . . . . . . Haulers Reinforced . | . . . . . . . . . . . . . . . . . . . . . . Active Scanning Responses . | . . . . . . . . . . . . . . . . . . . . . . Cargo Convoy Interrupts . | . . . . . . . . . . . . . . . . . . . . . . Stealth | -11 -10 -10 -9 -9 -6 -6 -6 -6 -5 -5 -5 -5 -5 -4 -4 -4 -4 -4 -4 -4 -3 --------- Run | Yrd Mat Sub Rec Scr Fac Low Low Zio Pro Fac Upp Upp Zhi Pro Fac Was Fac Upp Upp War Pro Distress Signals 10 | . 2 . . . . . . . . 1 . . . . 5 . 2 . . . . Communications Jammed 65 | . . . . . . . . . . . . . . . 65 . . . . . . Distress Signals 65 | . . . . . . . . . . . . . . . 65 . . . . . . Times Spotted 213 | . 24 16 . . 2 6 . . 10 17 14 . . 10 63 6 18 3 . 12 12 Peak Tracking Total 12 | . 6 5 . . 1 7 . . 5 5 5 . . 5 6 6 6 3 . 12 5 Tactical Retreats 25 | . . 2 . . . . . . 1 2 4 . . . 3 . 5 . . 4 4 Traps | -11 -10 -10 -9 -9 -6 -6 -6 -6 -5 -5 -5 -5 -5 -4 -4 -4 -4 -4 -4 -4 -3 ------- Run | Yrd Mat Sub Rec Scr Fac Low Low Zio Pro Fac Upp Upp Zhi Pro Fac Was Fac Upp Upp War Pro Traps Triggered 3 | . . . . . . . . . . . . . . . 1 . 1 . . 1 . Indirectly . | . . . . . . . . . . . . . . . . . . . . . . Trap Hack Attempts . | . . . . . . . . . . . . . . . . . . . . . . Triggered . | . . . . . . . . . . . . . . . . . . . . . . Disarmed . | . . . . . . . . . . . . . . . . . . . . . . Reprogrammed . | . . . . . . . . . . . . . . . . . . . . . . Reused . | . . . . . . . . . . . . . . . . . . . . . . Traps Extracted . | . . . . . . . . . . . . . . . . . . . . . . Installed 1 | . . . . . . . . . . . . . . . . . . . . . 1 Triggered 16 | . . . . . . . 2 . . . . . . . . . . . . 11 3 Machines | -11 -10 -10 -9 -9 -6 -6 -6 -6 -5 -5 -5 -5 -5 -4 -4 -4 -4 -4 -4 -4 -3 ---------- Run | Yrd Mat Sub Rec Scr Fac Low Low Zio Pro Fac Upp Upp Zhi Pro Fac Was Fac Upp Upp War Pro Machines Disabled 34 | . . 4 . . . . . . . 1 1 . . . 26 . 2 . . . . Max in Single Turn 6 | . . 2 . . . . . . . 1 1 . . . 6 . 1 . . . . Garrison Access 1 | . . . . . 1 . . . . . . . . . . . . . . . . Machines Repaired . | . . . . . . . . . . . . . . . . . . . . . . Machines Dismantled . | . . . . . . . . . . . . . . . . . . . . . . Machines Sabotaged . | . . . . . . . . . . . . . . . . . . . . . . Overloaded Fab Kills . | . . . . . . . . . . . . . . . . . . . . . . Hacking | -11 -10 -10 -9 -9 -6 -6 -6 -6 -5 -5 -5 -5 -5 -4 -4 -4 -4 -4 -4 -4 -3 --------- Run | Yrd Mat Sub Rec Scr Fac Low Low Zio Pro Fac Upp Upp Zhi Pro Fac Was Fac Upp Upp War Pro Machines Accessed 55 | . 7 . 4 10 4 . 1 . . 3 . . 5 . 7 . 6 . . 8 . Terminals 21 | . 5 . 2 . 3 . . . . 2 . . . . 4 . 5 . . . . Fabricators 1 | . . . . . . . . . . . . . . . 1 . . . . . . Repair Stations 1 | . . . . . . . . . . . . . . . . . 1 . . . . Recycling Units 4 | . 2 . . . . . . . . . . . . . 2 . . . . . . Scanalyzers . | . . . . . . . . . . . . . . . . . . . . . . Garrison Access 2 | . . . . . 1 . . . . 1 . . . . . . . . . . . Total Hacks 192 | . 15 . 33 57 11 . 1 . . 7 . . 14 . 16 . 20 . . 18 . Successful 152 | . 9 . 27 57 6 . 1 . . 2 . . 14 . 9 . 9 . . 18 . Failed 39 | . 5 . 6 . 5 . . . . 5 . . . . 7 . 11 . . . . Catastrophic 5 | . 1 . . . . . . . . 1 . . . . 2 . 1 . . . . Database Lockouts 1 | . 1 . . . . . . . . . . . . . . . . . . . . Manual 37 | . 8 . 7 . 2 . . 2 . 5 . 1 . . 5 . 7 . . . . Terminals 65 | . 12 . 8 . 10 . . . . 6 . . . . 11 . 18 . . . . Fabricators 3 | . . . . . . . . . . . . . . . 3 . . . . . . Repair Stations 2 | . . . . . . . . . . . . . . . . . 2 . . . . Recycling Units 5 | . 3 . . . . . . . . . . . . . 2 . . . . . . Scanalyzers . | . . . . . . . . . . . . . . . . . . . . . . Garrison Access 2 | . . . . . 1 . . . . 1 . . . . . . . . . . . Terminal Hacks 132 | . 5 . 25 57 3 . 1 . . 1 . . 14 . 3 . 5 . . 18 . Record 96 | . . . 24 56 . . . . . 1 . . 2 . . . 2 . . 11 . Part Schematic 5 | . 1 . . . . . . . . . . . 4 . . . . . . . . Robot Analysis 4 | . . . . . . . . . . . . . 4 . . . . . . . . Prototype ID Bank 11 | . 2 . . . . . . . . . . . 4 . . . . . . 5 . Open Door 3 | . . . . . . . 1 . . . . . . . . . . . . 2 . Branch Access Points 2 | . . . . . 1 . . . . . . . . . . . 1 . . . . Alert Level 2 | . . . . . . . . . . . . . . . 1 . 1 . . . . Unreport Threat 1 | . . . . . . . . . . . . . . . 1 . . . . . . Locate Traps 4 | . 1 . . . 1 . . . . . . . . . 1 . 1 . . . . Hauler Manifests 2 | . 1 . . . 1 . . . . . . . . . . . . . . . . Derelict Proto ID Bank 1 | . . . . 1 . . . . . . . . . . . . . . . . . Release Object 1 | . . . 1 . . . . . . . . . . . . . . . . . . Fabricator Hacks 2 | . . . . . . . . . . . . . . . 2 . . . . . . Load Schematic 1 | . . . . . . . . . . . . . . . 1 . . . . . . Build 1 | . . . . . . . . . . . . . . . 1 . . . . . . Repair Station Hacks 1 | . . . . . . . . . . . . . . . . . 1 . . . . Refit 1 | . . . . . . . . . . . . . . . . . 1 . . . . Recycling Unit Hacks 4 | . 2 . . . . . . . . . . . . . 2 . . . . . . Retrieve Components 4 | . 2 . . . . . . . . . . . . . 2 . . . . . . Scanalyzer . | . . . . . . . . . . . . . . . . . . . . . . Garrison Access Hacks 1 | . . . . . 1 . . . . . . . . . . . . . . . . Seal Access 1 | . . . . . 1 . . . . . . . . . . . . . . . . Unauthorized Hacks 12 | . 2 . 2 . 2 . . . . 1 . . . . 2 . 3 . . . . Terminals 12 | . 2 . 2 . 2 . . . . 1 . . . . 2 . 3 . . . . Assimilate 1 | . . . . . . . . . . . . . . . . . 1 . . . . Botnet 11 | . 2 . 2 . 2 . . . . 1 . . . . 2 . 2 . . . . Fabricators . | . . . . . . . . . . . . . . . . . . . . . . Repair Stations . | . . . . . . . . . . . . . . . . . . . . . . Recycling Units . | . . . . . . . . . . . . . . . . . . . . . . Scanalyzers . | . . . . . . . . . . . . . . . . . . . . . . Garrison Access . | . . . . . . . . . . . . . . . . . . . . . . Data Cores Recovered . | . . . . . . . . . . . . . . . . . . . . . . Used . | . . . . . . . . . . . . . . . . . . . . . . Hacking Detections 24 | . 4 . 2 . 3 . . . . 3 . . . . 6 . 6 . . . . Full Trace Events 3 | . . . . . . . . . . . . . . . 3 . . . . . . Feedback Events . | . . . . . . . . . . . . . . . . . . . . . . Feedback Blocked . | . . . . . . . . . . . . . . . . . . . . . . Robot Schematics Acquired 3 | . . . . . . . . 3 . . . . . . . . . . . . . Robots Built . | . . . . . . . . . . . . . . . . . . . . . . Authchips . | . . . . . . . . . . . . . . . . . . . . . . Time . | . . . . . . . . . . . . . . . . . . . . . . Total Robot Build Rating . | . . . . . . . . . . . . . . . . . . . . . . Part Schematics Acquired 20 | . 1 . . . . . . 15 . . . . 4 . . . . . . . . Parts Built 2 | . . . . . . . . . . . . . . . 2 . . . . . . Authchips . | . . . . . . . . . . . . . . . . . . . . . . Time 53 | . . . . . . . . . . . . . . . 53 . . . . . . Total Part Build Rating 12 | . . . . . . . . . . . . . . . 12 . . . . . . Parts Repaired . | . . . . . . . . . . . . . . . . . . . . . . Time . | . . . . . . . . . . . . . . . . . . . . . . Parts Recycled . | . . . . . . . . . . . . . . . . . . . . . . Recycled Matter . | . . . . . . . . . . . . . . . . . . . . . . Retrieved Matter . | . . . . . . . . . . . . . . . . . . . . . . Retrieved Components 25 | . 13 . . . . . . . . . . . . . 12 . . . . . . Parts Scanalyzed . | . . . . . . . . . . . . . . . . . . . . . . Part Schematics Acquired . | . . . . . . . . . . . . . . . . . . . . . . Parts Damaged . | . . . . . . . . . . . . . . . . . . . . . . Bothacking | -11 -10 -10 -9 -9 -6 -6 -6 -6 -5 -5 -5 -5 -5 -4 -4 -4 -4 -4 -4 -4 -3 ------------ Run | Yrd Mat Sub Rec Scr Fac Low Low Zio Pro Fac Upp Upp Zhi Pro Fac Was Fac Upp Upp War Pro Used RIF Installer . | . . . . . . . . . . . . . . . . . . . . . . Robots Hacked . | . . . . . . . . . . . . . . . . . . . . . . Non-combat . | . . . . . . . . . . . . . . . . . . . . . . Combat . | . . . . . . . . . . . . . . . . . . . . . . Robot Hacks Applied . | . . . . . . . . . . . . . . . . . . . . . . Relay Couplers Released . | . . . . . . . . . . . . . . . . . . . . . . Fabnet Peak Effective % . | . . . . . . . . . . . . . . . . . . . . . . Robots Rewired 1 | . . . . . . . . . . . 1 . . . . . . . . . . Allies Hacked . | . . . . . . . . . . . . . . . . . . . . . . Hacks Repelled . | . . . . . . . . . . . . . . . . . . . . . . Allies | -11 -10 -10 -9 -9 -6 -6 -6 -6 -5 -5 -5 -5 -5 -4 -4 -4 -4 -4 -4 -4 -3 -------- Run | Yrd Mat Sub Rec Scr Fac Low Low Zio Pro Fac Upp Upp Zhi Pro Fac Was Fac Upp Upp War Pro Total Allies 4 | . . . . . . . . . . . 1 . . . . 2 1 . . . . Largest Group 1 | . . . . . . . . . . . 1 . . . . 1 1 . . . . Highest-Rated Group 46 | . . . . . . . . . . . 29 . . . . 46 26 . . . . Highest-Rated Ally 46 | . . . . . . . . . . . 29 . . . . 46 26 . . . . Total Orders . | . . . . . . . . . . . . . . . . . . . . . . Ally Attacks 5 | . . . . . . . . . . . 1 . . . . 4 . . . . . Total Damage 200 | . . . . . . . . . . . . . . . . 200 . . . . . Kills . | . . . . . . . . . . . . . . . . . . . . . . Allies Corrupted . | . . . . . . . . . . . . . . . . . . . . . . Allies Melted 1 | . . . . . . . . . . . . . . . . . . . . 1 . Intel | -11 -10 -10 -9 -9 -6 -6 -6 -6 -5 -5 -5 -5 -5 -4 -4 -4 -4 -4 -4 -4 -3 ------- Run | Yrd Mat Sub Rec Scr Fac Low Low Zio Pro Fac Upp Upp Zhi Pro Fac Was Fac Upp Upp War Pro Robot Analysis Total 4 | . . . . . . . . . . . . . 4 . . . . . . . . Derelict Logs Recovered 9 | . . 2 . 1 . 1 1 . 2 . . 1 . . . . . . 1 . . Drone Launches . | . . . . . . . . . . . . . . . . . . . . . . Drone Recoveries . | . . . . . . . . . . . . . . . . . . . . . . Decoded 0b10 Intel 20 | . . . . . . . . . . 20 . . . . . . . . . . . Traps 1 | . . . . . . . . . . 1 . . . . . . . . . . . Items 16 | . . . . . . . . . . 16 . . . . . . . . . . . Machines 2 | . . . . . . . . . . 2 . . . . . . . . . . . Patrols 1 | . . . . . . . . . . 1 . . . . . . . . . . . Exploration | -11 -10 -10 -9 -9 -6 -6 -6 -6 -5 -5 -5 -5 -5 -4 -4 -4 -4 -4 -4 -4 -3 ------------- Run | Yrd Mat Sub Rec Scr Fac Low Low Zio Pro Fac Upp Upp Zhi Pro Fac Was Fac Upp Upp War Pro Turns Passed 21650 | 141 1416 1367 168 4741 641 528 627 1774 653 770 1803 604 269 749 3101 151 664 167 233 673 410 Spaces Moved 13154 | 85 715 685 94 2541 377 329 387 1087 323 330 844 357 159 421 1016 103 965 392 262 1361 321 Core 94 | 9 . . . . . . . . . . 1 . . . . 68 15 . . . 1 Treads 2747 | . . . . . . . . . . . 762 357 159 421 1013 35 . . . . . Legs 413 | 76 334 . . . . . . . . . . . . . 3 . . . . . . Wheels 6635 | . 381 685 94 2541 377 329 387 1087 323 330 81 . . . . . 20 . . . . Hover 421 | . . . . . . . . . . . . . . . . . 421 . . . . Flight 2844 | . . . . . . . . . . . . . . . . . 509 392 262 1361 320 Fastest Speed 23 | 50 120 175 175 175 160 160 160 160 160 165 160 160 162 162 159 50 29 35 35 23 23 Average Speed 143 | 112 149 178 175 185 160 160 160 160 167 179 195 161 162 162 213 139 49 35 35 44 67 Slowest Speed 2100 | 120 175 190 190 190 160 160 160 160 220 220 2100 162 162 163 490 480 110 35 35 115 550 Overloaded Moves . | . . . . . . . . . . . . . . . . . . . . . . Propulsion Burnouts . | . . . . . . . . . . . . . . . . . . . . . . Robots Hopped 11 | . . . . . . . . . . . . . . . . . . . . 11 . Cave-ins Triggered . | . . . . . . . . . . . . . . . . . . . . . . Teleports 1 | . . . . . . . . . . . . . . . 1 . . . . . . Exploration Rate (%) 50 | 4 69 47 19 95 7 64 54 87 53 7 83 53 62 63 22 73 22 54 49 97 37 Regions Visited 21 Branch Regions 15 Pre-discovered Areas 2 | . . . . . . . . 1 . . . . . . . . . . . 1 . Known Exits Taken 4 | . . . . . 1 1 . . 1 . . . . . . . 1 . . . . Unknown Exits Taken 15 | 1 1 1 1 1 . . 1 1 . 1 1 1 1 1 . . . 1 1 1 . Scrap Searched 28 | . . 1 . 11 . 1 . 3 1 . 4 2 . . . . . 3 1 . 1 Spaces Dug 58 | . . . . . . . . . 2 8 6 1 . 18 18 . 4 1 . . . Terrain Destroyed 481 | 2 3 42 . . 1 . . . 21 21 106 1 . 36 233 . 6 1 . . 8 Melee 30 | . . . . . . . . . 2 8 6 1 . . 13 . . . . . . Projectile 91 | . . . . . 1 . . . 19 7 5 . . 2 42 . 6 1 . . 8 AOE 360 | 2 3 42 . . . . . . . 6 95 . . 34 178 . . . . . . Terrain Rammed . | . . . . . . . . . . . . . . . . . . . . . . Walls Destroyed . | . . . . . . . . . . . . . . . . . . . . . . Machines Disabled . | . . . . . . . . . . . . . . . . . . . . . . Actions | -11 -10 -10 -9 -9 -6 -6 -6 -6 -5 -5 -5 -5 -5 -4 -4 -4 -4 -4 -4 -4 -3 --------- Run | Yrd Mat Sub Rec Scr Fac Low Low Zio Pro Fac Upp Upp Zhi Pro Fac Was Fac Upp Upp War Pro Total 15180 | 107 1024 774 97 2587 404 331 398 1125 368 439 934 385 169 453 1610 110 1122 418 403 1415 507 Wait 1030 | . 227 26 1 1 2 . . 23 4 39 3 15 . 7 252 . 69 13 140 34 174 Move 13112 | 84 714 684 93 2540 376 328 386 1086 322 329 843 356 158 420 1016 102 964 391 261 1338 321 Hop 11 | . . . . . . . . . . . . . . . . . . . . 11 . Pick Up 178 | 6 33 8 . 19 9 1 3 4 1 15 12 1 2 1 38 3 17 1 1 3 . Fast Attach 88 | 7 1 . . . 1 . . 4 . 5 4 4 3 1 25 2 19 2 . 10 . Attach 74 | . . 1 . 2 7 . . . 8 3 8 . . 3 27 2 8 1 . 1 3 Detach 13 | . . . . . 1 . . . . . . 1 . . 2 1 4 1 . 3 . Swap 126 | . 9 9 2 5 1 1 4 . 3 8 15 1 1 4 53 . 3 4 . 2 1 Drop 158 | . 17 10 1 20 2 1 5 8 . 10 3 6 4 1 34 . 17 3 1 13 2 Fire 331 | 10 20 32 . . 5 . . . 28 16 26 . . 16 150 . 21 2 . . 5 Melee 44 | . 3 4 . . . . . . 2 11 9 1 1 . 13 . . . . . . Ram . | . . . . . . . . . . . . . . . . . . . . . . Kick . | . . . . . . . . . . . . . . . . . . . . . . Crush 4 | . . . . . . . . . . 3 1 . . . . . . . . . . Escape Stasis . | . . . . . . . . . . . . . . . . . . . . . . Rewire 10 | . . . . . . . . . . . 10 . . . . . . . . . . Trap 1 | . . . . . . . . . . . . . . . . . . . . . 1 Miscellaneous . | . . . . . . . . . . . . . . . . . . . . . . Route ------- -11/Scrapyard -10/Materials (discovered 4 exits: [*Mat x2] / [*Min] / [*Sub]) -10/Subcaves -9/Recycling -9/Scraptown (discovered 2 exits: *Fac x2) -6/Factory (discovered 3 exits: Fac / *Low x2) -6/Lower Caves -6/Lower Caves -6/Zion -5/Proximity Caves -5/Factory -5/Upper Caves -5/Upper Caves (discovered 2 exits: *Fac / *Zhi) -5/Zhirov -4/Proximity Caves -4/Factory (discovered 2 exits: [*Res] / Arm) -4/Waste -4/Factory (discovered 3 exits: *Upp x2 / Arm) -4/Upper Caves -4/Upper Caves -4/Warlord -3/Proximity Caves History --------- Turn | Location | Event 7 | -11/Scrapyard | Discovered new exit (range 16) 142 | -11/Scrapyard | Entered Materials 309 | -10/Materials | Build established: Mutant 409 | -10/Materials | Discovered new exit (range 12) 561 | -10/Materials | Discovered new exit (range 12) 717 | -10/Materials | Discovered new exit (range 10) 751 | -10/Materials | Central database locked down 1552 | -10/Materials | Discovered new exit (range 3) 1558 | -10/Materials | Entered Subcaves 1569 | -10/Subcaves | Learned Materials stockpile data 1578 | -10/Subcaves | Learned 2 Materials zone layouts 1582 | -10/Subcaves | Shifting Twisted Machinery released Sub. Laser 1595 | -10/Subcaves | Shifting Twisted Machinery released Riot Gun 2058 | -10/Subcaves | Shifting Twisted Machinery released Sub. Power Source 2076 | -10/Subcaves | Shifting Twisted Machinery released Flamer 2636 | -10/Subcaves | Shifting Twisted Machinery released Sub. Machine Gun 2727 | -10/Subcaves | Core integrity fell below 50% 2746 | -10/Subcaves | Discovered new exit (range 15) 2925 | -10/Subcaves | Entered Recycling 2926 | -9/Recycling | Met a Zionite searching for Scraptown 3014 | -9/Recycling | Scanned before Scraplab entrance 3039 | -9/Recycling | Entered Scraplab 3065 | -9/Recycling | Discovered new exit (range 3) 3093 | -9/Recycling | Entered Scraptown 3784 | -9/Scraptown | Discovered new exit (range 7) 3828 | -9/Scraptown | Scanned Subdweller tech in exchange for log data 3833 | -9/Scraptown | Learned 8 Factory zone layouts 3900 | -9/Scraptown | Visited Cyclists 3959 | -9/Scraptown | Visited Bundlers 4112 | -9/Scraptown | Visited Red Mages 4254 | -9/Scraptown | Visited Spacefarers 4343 | -9/Scraptown | Visited Fellowship of the Rings 4713 | -9/Scraptown | Visited Junk Repository 4781 | -9/Scraptown | Visited Cave Peace 5121 | -9/Scraptown | Visited UFD Registry 5121 | -9/Scraptown | Registered with UFD as "Nukecoil" 5199 | -9/Scraptown | Visited Research Penetration Think Tank 5334 | -9/Scraptown | Visited Botcube Research 5348 | -9/Scraptown | Found Botcube 5527 | -9/Scraptown | Entered Cyclist Reading Room 5795 | -9/Scraptown | Visited Junk Repository 6147 | -9/Scraptown | Visited Observation Area 6291 | -9/Scraptown | Visited LU-1G1's Boring Crew 6533 | -9/Scraptown | Discovered new exit (range 5) 6635 | -9/Scraptown | Visited DA-N13 Charitable Foundation 6654 | -9/Scraptown | Found DCF Scrap (26 items) 6715 | -9/Scraptown | Visited Curators Association 7182 | -9/Scraptown | Visited Science Guys 7252 | -9/Scraptown | Visited Scrap Suit Storage 7315 | -9/Scraptown | Visited Abandonware Association 7344 | -9/Scraptown | Learned abandonware demo "TRNCOAT.EXE" 7344 | -9/Scraptown | Learned abandonware demo "REBOOT5.EXE" 7525 | -9/Scraptown | Found Scrap Suit 7834 | -9/Scraptown | Entered Factory 7834 | -6/Factory | Evolved 8 slots: Power x1, Propulsion x2, Utility x4, Weapon x1 7835 | -6/Factory | Identified exit to Factory 7890 | -6/Factory | Discovered new exit (range 16) 7896 | -6/Factory | Identified exit to Lower Caves 8129 | -6/Factory | Build established: Tank 8201 | -6/Factory | Found Launcher Loader 8475 | -6/Factory | Entered Lower Caves 8837 | -6/Lower Caves | Identified exit to Lower Caves 9003 | -6/Lower Caves | Entered another Lower Caves area 9036 | -6/Lower Caves | Encountered a Warlord checkpoint 9423 | -6/Lower Caves | Learned Factory emergency access door positions 9617 | -6/Lower Caves | Discovered new exit (range 8) 9630 | -6/Lower Caves | Entered Zion 9730 | -6/Zion | Given the Hacking Drone Bay 9730 | -6/Zion | Found Prototype Device 9730 | -6/Zion | Identified Hacking Drone Bay 9802 | -6/Zion | System corruption cleaned by Quarantine Array 10248 | -6/Zion | Learned location of Warlord (-4) 10332 | -6/Zion | Found Prototype Device 10332 | -6/Zion | Identified Mobile Refinery Mk. CCLXVII 10796 | -6/Zion | Received a hallucinogenic algorithm 11095 | -6/Zion | Turned away by Imprinter 11382 | -6/Zion | Discovered new exit (range 15) 11404 | -6/Zion | Entered Proximity Caves 11407 | -5/Proximity Caves | Spotter reported a threat 11670 | -5/Proximity Caves | Learned Factory stockpile data 11808 | -5/Proximity Caves | Spotter reported a threat 11852 | -5/Proximity Caves | Learned Factory stockpile data 11868 | -5/Proximity Caves | Spotted B-75 Beast 11908 | -5/Proximity Caves | Destroyed B-75 Beast 11936 | -5/Proximity Caves | Lost 5 parts (1p2u2w) 12037 | -5/Proximity Caves | Discovered exit to Factory (range 10) 12057 | -5/Proximity Caves | Entered Factory 12057 | -5/Factory | Evolved 2 slots: Propulsion x1, Utility x1 12357 | -5/Factory | Search patrols dispatched 12773 | -5/Factory | Discovered new exit (range 3) 12827 | -5/Factory | Entered Upper Caves 12876 | -5/Upper Caves | Attracted the attention of an 0b10 outpost 13032 | -5/Upper Caves | System corruption reached 10% 13123 | -5/Upper Caves | Lost 10 parts (1p4n4u1w) 13297 | -5/Upper Caves | Attracted the attention of an 0b10 checkpoint 13599 | -5/Upper Caves | Found DCF Scrap (13 items) 13897 | -5/Upper Caves | Spotted B-75 Beast 13941 | -5/Upper Caves | Build established: Scavenger-Tank 14324 | -5/Upper Caves | Build established: Scavenger-Mutant 14612 | -5/Upper Caves | Discovered new exit (range 12) 14630 | -5/Upper Caves | Entered another Upper Caves area 14706 | -5/Upper Caves | Discovered new exit (range 8) 14710 | -5/Upper Caves | Encountered a Warlord checkpoint 14835 | -5/Upper Caves | Learned location of 1 exit from Factory 14981 | -5/Upper Caves | Acquired the password to a Derelict Tinkerer's latest research 15000 | -5/Upper Caves | Found Prototype Special Weapon 15000 | -5/Upper Caves | Identified Molecular Deconstructor 15219 | -5/Upper Caves | Discovered new exit (range 9) 15234 | -5/Upper Caves | Entered Zhirov 15234 | -5/Zhirov | Discovered new exit (range 3) 15264 | -5/Zhirov | Met Zhirov 15295 | -5/Zhirov | Build established: Derelict-Mutant 15327 | -5/Zhirov | Zhirov requested help retrieving the SGEMP Prototype 15361 | -5/Zhirov | Found Alien Artifact 15361 | -5/Zhirov | Identified Integrated Reactor 15361 | -5/Zhirov | Installed Integrated Reactor, increased core energy generation (+10) 15391 | -5/Zhirov | Found Alien Artifact 15503 | -5/Zhirov | Entered Proximity Caves 15915 | -4/Proximity Caves | Spotter reported a threat 15921 | -4/Proximity Caves | Build established: Scavenger-Gunner 16085 | -4/Proximity Caves | Attracted the attention of an 0b10 checkpoint 16159 | -4/Proximity Caves | Lost 4 parts (1p1n1u1w) 16245 | -4/Proximity Caves | Discovered new exit (range 4) 16252 | -4/Proximity Caves | Entered Factory 16252 | -4/Factory | Evolved 2 slots: Propulsion x1, Utility x1 16253 | -4/Factory | Identified exit to Armory 16424 | -4/Factory | Discovered new exit (range 13) 16820 | -4/Factory | Build established: Scavenger-Skirmisher 17036 | -4/Factory | Garrison activated, responded to threat 17416 | -4/Factory | Fabricated Arm. Medium Treads (x2) 17470 | -4/Factory | Lost 9 parts (4n4u1w) 17760 | -4/Factory | Build established: Scavenger-Tank 17891 | -4/Factory | Garrison activated, responded to threat 18598 | -4/Factory | Spotted B-86 Titan 18617 | -4/Factory | Destroyed B-86 Titan 19039 | -4/Factory | Lost 3 parts (2n1u) 19092 | -4/Factory | System corruption reached 10% 19098 | -4/Factory | Core integrity fell below 50% 19134 | -4/Factory | Destroyed 7 combat bots 19137 | -4/Factory | Lost 4 parts (1p1n1u1w) 19179 | -4/Factory | Build established: Scavenger-Gunner 19300 | -4/Factory | First assault squad dispatched 19308 | -4/Factory | Identified Transdimensional Reconstructor 19308 | -4/Factory | Warped through subspace 19353 | -4/Factory | Sucked down chute 19353 | -4/Factory | Entered Waste 19354 | -4/Waste | Met a frightened Derelict 19375 | -4/Waste | Lost 10 parts (2p3n4u1w) 19417 | -4/Waste | Spotted C-40 Crusher 19422 | -4/Waste | Spotted C-40 Crusher 19427 | -4/Waste | Spotted C-40 Crusher 19428 | -4/Waste | Spotted C-40 Crusher 19435 | -4/Waste | Crushed by Compactor (1 part destroyed, 2 dropped) 19438 | -4/Waste | Crushed by Compactor (1 part destroyed, 1 dropped) 19438 | -4/Waste | Spotted C-40 Crusher 19439 | -4/Waste | Crushed by Compactor (1 part destroyed, 2 dropped) 19440 | -4/Waste | Botcube activated 19447 | -4/Waste | Spotted C-40 Crusher 19448 | -4/Waste | Botcube completed mutation into core form, armed with 1 melee weapon. 19468 | -4/Waste | Discovered new exit (range 16) 19479 | -4/Waste | Lost 6 parts (3n1u2w) 19504 | -4/Waste | Entered Factory 19739 | -4/Factory | Build established: Mutant 19802 | -4/Factory | Garrison activated, responded to threat 20136 | -4/Factory | Identified exit to Upper Caves 20168 | -4/Factory | Entered Upper Caves 20196 | -4/Upper Caves | Lost 4 parts (2p2n) 20330 | -4/Upper Caves | Discovered new exit (range 15) 20335 | -4/Upper Caves | Entered another Upper Caves area 20336 | -4/Upper Caves | Encountered a Warlord checkpoint 20344 | -4/Upper Caves | Learned Research terminal intel 20463 | -4/Upper Caves | Build established: Hacker-Mutant 20567 | -4/Upper Caves | Discovered new exit (range 5) 20568 | -4/Upper Caves | Entered Warlord 20587 | -4/Warlord | System corruption cleaned by Quarantine Array 20643 | -4/Warlord | Opened side exit 20650 | -4/Warlord | Discovered new exit (range 11) 20746 | -4/Warlord | Rebuked by Warlord 20758 | -4/Warlord | Learned location of Armory (-4) 20758 | -4/Warlord | Learned 4 Access zone layouts 20758 | -4/Warlord | Learned 4 Access zone layouts 20758 | -4/Warlord | Learned 4 Command zone layouts 20758 | -4/Warlord | Learned Armory repair station intel 20758 | -4/Warlord | Learned Research repair station intel 20771 | -4/Warlord | Warlord's base attacked by MAIN.C 21005 | -4/Warlord | Found Prototype Energy Gun 21005 | -4/Warlord | Identified Vortex Rail 21121 | -4/Warlord | Warlord forces counterattacked 21209 | -4/Warlord | Lost 12 allies 21214 | -4/Warlord | Core integrity fell below 20% 21241 | -4/Warlord | Entered Proximity Caves 21271 | -3/Proximity Caves | Lost 3 allies 21651 | -3/Proximity Caves | Destroyed by S-43 Plague with Heavy Machine Gun Last Messages --------------- 21608_ System corrupted: Matter fused (-6). 21630_ System corrupted: Matter fused (-9). 21630_ Lgt. Quantum Reactor destroyed. 21631_ VTOL Module destroyed. 21633_ S-43 Plague destroyed. 21635_ Cesium-ion Thruster destroyed. 21636_ Impulse Thruster destroyed. 21640_ Unknown Flight Unit fries itself beyond repair. 21640_ Lgt. Antimatter Reactor fries itself beyond repair. 21640_ Enh. Quantum Rifle destroyed. 21641_ Slug penetrates Wall. 21642_ System Shield destroyed. 21644_ Vortex penetrates S-43 Plague. 21644_ Vortex penetrates Wall. 21646_ Slug penetrates S-43 Plague. 21646_ S-43 Plague knocked back. 21651_ Hvy. Gauss Cannon destroyed. [Achievement: This Is Interesting...] Map ----- +----------------------------------------------------+ | ?????????????????????????????????????????????????? | | ?????????????????????????????????????????????????? | | ?????????????????????????????????????????????????? | | ?????????????????????????????????????????????????? | | ?????????????????????????????????????????????????? | | ?????????????????????????????????????????????????? | | ?????????????????????????????????????????????????? | | ?????????????????????????????????????????????????? | | ?????????????????????????????????????????????????? | | ?????????????????????????? #?????????????????????? | | ????????????????????????? #????????????????????? | | ????????????????????????? ##???????????????????? | | ????????????????????????? ##??????????????????? | | ????????????????????????? #???????? ##???????? | | ?????????????????????????; ???????? ######???? | | ?????????????????????####; ????????? #######?? | | ????????????????????## ???????? ####? | | ???????????????????## ?????????? #### | | ???????????????????## ??????????? ### | | ?????????????????? #; ????? ### ?? ## | | ??????????????# ??### ????####### ? | | ??????????????# ## ?????### ### ? | | ???????????????? ????### ##?## | | ??????????????????? sss######## ###### | | ??????????????###????#;; %;###### ###### ### | | ??????????????###?????#; @ ### ### | | ?????????????? ?????## s ## | | ???????????????? ?????### ## # | | ????????????????? ########### ######## ## | | ???# ??????????? ########### ################" | | ??### ?????????? ##???## ##????#########"%" | | ##### ?????????? ##???## ##??????#### " | | #### ??????????## ##???## #####??#### | | ## ????????### ###??## #### ## | | # ### ##?????#### ###??## #### | | # ### ##?####### ###### #### # ## | | # #### ######## ###### ##### ## #### | | # ##???? #### ###### ### #### | | # ######## ## ###########?### #### #### | | # ######## ###########??## #####% #### | | " ### ###??####### ##### ## | | ##### ############# ??## # | | "##### #####??## # | | " ### #?###??## % ## | | " # #### # ######++######## ###????## ### | | " ###### # # " """"""# #####??###% #### | | #####?### # # ????????????"# ###??###! | | ####### ## #"????????????"# ###??## | | ###??## ## # ????????????T# ####### ### | | ###??## # # ???????????? # ###### ### | +----------------------------------------------------+ Best States ------------- Heat Dissipation 89 Energy Generation 51 Energy Capacity 540 Matter Stores 300 Matter Capacity 600 Sight Range 20 Robot Scan Range 16 Terrain Scan Range 14 Terrain Scan Density 10 ECM Strength 1 Jamming Range 16 Cloak Strength 3 Base Temperature (-) 150 EM Shielding 3 Armor Coverage 600 Weapon Cycling 20 Phase Shifting 5 Evasion (%) 65 Targeting Accuracy 6 Launcher Accuracy 30 Core Analysis 6 Armor Integrity Analysis 40 Recoil Reduction 6 Energy Filtering 30 Particle Charging 30 Offensive Hacking 26 Defensive Hacking 10 Item Schematics ----------------- Hcp. Storage Unit | -10/Materials | Hacked Imp. Recalibrator | -6/Zion | Archive Magnetic Acceleration Cannon | -6/Zion | Archive Myomer Leg | -6/Zion | Archive Imp. Trap Scanner | -6/Zion | Archive Arm. Medium Treads | -6/Zion | Archive Imp. Actuator Array | -6/Zion | Archive Lrn. Tractor Beam | -6/Zion | Archive Hvy. Flak Cannon | -6/Zion | Archive Imp. Focal Shield | -6/Zion | Archive System Guard | -6/Zion | Archive Imp. System Guard | -6/Zion | Archive Variable Charge Gun | -6/Zion | Archive Adv. Melee Analysis Suite | -6/Zion | Archive Proton Cannon | -6/Zion | Archive Imp. Arc Projector | -6/Zion | Archive Assault Drone Bay | -5/Zhirov | Free Exp. Heat Sink | -5/Zhirov | Free Exp. Optical Array | -5/Zhirov | Free Imp. Arc Thrower | -5/Zhirov | Free Robot Schematics ------------------ A-02 Transporter | -6/Zion | Archive T-07 Excavator | -6/Zion | Archive R-06 Scavenger | -6/Zion | Archive Fabricated ------------ Arm. Medium Treads | x2 | -4/Factory Alien Tech Used ----------------- Integrated Reactor Transdimensional Reconstructor Achievements -------------- A Powerful Ally? Can't Catch Me Charge!!! Fist Fight Tank This Is Interesting... Challenges ------------ None Game ------ Seed CompactNeutronMeganuke Manual? 0 Play Time 05:20:33 Cumulative 61.3 hours Start 2025.01.02 @ 23:00:10 End 2025.01.04 @ 20:53:22 Sessions 4 Manual Loads 0 Difficulty Rogue Special Mode None Game No. 31 Rogue 31 Adventurer 0 Explorer 0 Win Type - Total 0 Types 0/0/0/0/0/0/0/0/0 Lore% 36 Gallery% 38 Achievement% 35 Wizard Run 0 Options --------- Layout 1 ASCII 0 Keyboard 0 Movement Mouse Keybinds 0 Fullscreen 1 Font 32/Smallcaps Map View 50x35 Zoom Use 0% Tactical HUD 1 Map Filters NONE Filters NONE Steam 1 RUN: e9fc7beb-1050-4ba5-b256-e5ddac5b1ac3